[Event "*** Titled Tuesday Blitz"]
[Site "Chess.com"]
[Date "2020.12.29"]
[Round "2"]
[White "Keranke"]
[Black "m_ezat"]
[Result "1-0"]
[WhiteElo "2822"]
[BlackElo "2535"]
[TimeControl "180+1"]
[EndTime "10:16:05 PST"]
[Termination "Keranke won by resignation"]

1. d4 {[%clk 0:03:00.9]} 1... Nf6 {[%clk 0:02:56.7]} 2. Nf3 {[%clk 0:03:01]}
2... g6 {[%clk 0:02:53.9]} 3. g3 {[%clk 0:02:59.7]} 3... Bg7 {[%clk 0:02:53.9]}
4. Bg2 {[%clk 0:03:00.3]} 4... O-O {[%clk 0:02:54.5]} 5. O-O {[%clk 0:03:00.8]}
5... d6 {[%clk 0:02:54.9]} 6. b3 {[%clk 0:03:01.3]} 6... Nc6 {[%clk 0:02:55]} 7.
Bb2 {[%clk 0:03:01.8]} 7... e5 {[%clk 0:02:55.2]} 8. dxe5 {[%clk 0:03:02.6]}
8... Ng4 {[%clk 0:02:54.6]} 9. c4 {[%clk 0:03:03.1]} 9... a5 {[%clk 0:02:52.4]}
10. Nc3 {[%clk 0:03:02.8]} 10... Ngxe5 {[%clk 0:02:52.3]} 11. Nxe5 {[%clk
0:03:01]} 11... Nxe5 {[%clk 0:02:52.3]} 12. Qd2 {[%clk 0:03:00.3]} 12... a4
{[%clk 0:02:49.7]} 13. Rfd1 {[%clk 0:02:51.8]} 13... a3 {[%clk 0:02:41.3]} 14.
Bc1 {[%clk 0:02:51.3]} 14... Re8 {[%clk 0:02:41.1]} 15. Rb1 {[%clk 0:02:42.8]}
15... Bf5 {[%clk 0:02:39.3]} 16. Bxb7 {[%clk 0:02:21.1]} 16... Rb8 {[%clk
0:02:31.6]} 17. Bd5 {[%clk 0:02:21.2]} 17... Bxb1 {[%clk 0:02:29.3]} 18. Nxb1
{[%clk 0:02:22.1]} 18... c6 {[%clk 0:02:29.4]} 19. Bg2 {[%clk 0:02:22]} 19...
Nxc4 {[%clk 0:02:29]} 20. Qc2 {[%clk 0:02:15.9]} 20... Nb2 {[%clk 0:02:27.3]}
21. Rd2 {[%clk 0:02:10]} 21... d5 {[%clk 0:02:21.8]} 22. Nxa3 {[%clk 0:02:07.9]}
22... Qa5 {[%clk 0:01:59.3]} 23. Bxb2 {[%clk 0:02:06.2]} 23... Bxb2 {[%clk
0:01:57]} 24. Qxb2 {[%clk 0:02:07.1]} 24... Ra8 {[%clk 0:01:56.8]} 25. Nb1
{[%clk 0:02:06.8]} 25... Re6 {[%clk 0:01:50.8]} 26. Bf3 {[%clk 0:02:06.6]} 26...
Rae8 {[%clk 0:01:49.6]} 27. Kg2 {[%clk 0:02:05.6]} 27... h5 {[%clk 0:01:48.6]}
28. h4 {[%clk 0:02:05.1]} 28... Qb4 {[%clk 0:01:45.7]} 29. Qd4 {[%clk
0:02:00.2]} 29... Qa5 {[%clk 0:01:42.2]} 30. Rc2 {[%clk 0:01:58.9]} 30... Qe1
{[%clk 0:01:17.8]} 31. Nc3 {[%clk 0:01:58.8]} 31... Ra8 {[%clk 0:01:01.3]} 32.
b4 {[%clk 0:01:55]} 32... Ra3 {[%clk 0:00:51.8]} 33. b5 {[%clk 0:01:52.1]} 33...
cxb5 {[%clk 0:00:50.8]} 34. Nxd5 {[%clk 0:01:50.1]} 34... Ra8 {[%clk 0:00:36.3]}
35. Nf6+ {[%clk 0:01:48.1]} 1-0

[Event "*** Titled Tuesday Blitz"]
[Site "Chess.com"]
[Date "2020.12.29"]
[Round "2"]
[White "pastouche06"]
[Black "area_5"]
[Result "0-1"]
[WhiteElo "2523"]
[BlackElo "2789"]
[TimeControl "180+1"]
[EndTime "10:16:06 PST"]
[Termination "area_5 won by resignation"]

1. d4 {[%clk 0:03:00.9]} 1... Nf6 {[%clk 0:02:59.4]} 2. c4 {[%clk 0:03:00.1]}
2... g6 {[%clk 0:02:59.7]} 3. f3 {[%clk 0:02:59.9]} 3... Bg7 {[%clk 0:02:59.6]}
4. e4 {[%clk 0:02:58.1]} 4... O-O {[%clk 0:02:59.6]} 5. Ne2 {[%clk 0:02:57.6]}
5... c5 {[%clk 0:02:58.2]} 6. Be3 {[%clk 0:02:55.5]} 6... cxd4 {[%clk
0:02:56.4]} 7. Nxd4 {[%clk 0:02:56.4]} 7... Nc6 {[%clk 0:02:55.7]} 8. Nc3 {[%clk
0:02:53]} 8... d6 {[%clk 0:02:55.3]} 9. Be2 {[%clk 0:02:52.2]} 9... Nxd4 {[%clk
0:02:55.1]} 10. Bxd4 {[%clk 0:02:52.4]} 10... Be6 {[%clk 0:02:55.7]} 11. O-O
{[%clk 0:02:51]} 11... Qa5 {[%clk 0:02:55.6]} 12. Qd2 {[%clk 0:02:30.3]} 12...
Rfc8 {[%clk 0:02:54.7]} 13. b3 {[%clk 0:02:19.7]} 13... b5 {[%clk 0:02:47]} 14.
Rad1 {[%clk 0:01:16.2]} 14... bxc4 {[%clk 0:02:45.1]} 15. bxc4 {[%clk
0:01:15.5]} 15... Bxc4 {[%clk 0:02:35.6]} 16. Bxc4 {[%clk 0:01:16.4]} 16... Rxc4
{[%clk 0:02:34.8]} 17. Bxf6 {[%clk 0:01:15.6]} 17... Bxf6 {[%clk 0:02:30.5]} 18.
Nd5 {[%clk 0:01:14.9]} 18... Qxd2 {[%clk 0:02:29.8]} 19. Nxf6+ {[%clk
0:01:12.9]} 19... Kg7 {[%clk 0:02:30]} 20. Nh5+ {[%clk 0:01:11.3]} 20... Kh6
{[%clk 0:02:29.6]} 21. Rxd2 {[%clk 0:01:08.8]} 21... Kxh5 {[%clk 0:02:29.9]} 22.
Rb1 {[%clk 0:01:06.8]} 22... Rac8 {[%clk 0:02:26.8]} 23. Rb7 {[%clk 0:01:01]}
23... R8c7 {[%clk 0:02:26.8]} 24. Rxc7 {[%clk 0:00:57.7]} 24... Rxc7 {[%clk
0:02:26.1]} 25. Rd5+ {[%clk 0:00:56.4]} 25... Kh6 {[%clk 0:02:26.2]} 26. Ra5
{[%clk 0:00:55.7]} 26... Kg7 {[%clk 0:02:24.8]} 27. Kf2 {[%clk 0:00:52.2]} 27...
Kf6 {[%clk 0:02:24.8]} 28. Ke3 {[%clk 0:00:51.3]} 28... Rc2 {[%clk 0:02:19.4]}
29. g4 {[%clk 0:00:48.4]} 29... Rxh2 {[%clk 0:02:17.5]} 30. Rxa7 {[%clk
0:00:47.1]} 30... h5 {[%clk 0:02:16.7]} 31. gxh5 {[%clk 0:00:44.7]} 31... gxh5
{[%clk 0:02:13]} 32. a4 {[%clk 0:00:44.2]} 32... h4 {[%clk 0:02:13.1]} 33. Kf4
{[%clk 0:00:40.8]} 33... Rg2 {[%clk 0:02:12]} 34. Ra8 {[%clk 0:00:28.7]} 34...
Kg7 {[%clk 0:02:07.3]} 35. Ra5 {[%clk 0:00:28.1]} 35... e5+ {[%clk 0:02:02.4]}
0-1

[Event "*** Titled Tuesday Blitz"]
[Site "Chess.com"]
[Date "2020.12.29"]
[Round "2"]
[White "ehrenfeld"]
[Black "Sviridov_Valery"]
[Result "0-1"]
[WhiteElo "2552"]
[BlackElo "2854"]
[TimeControl "180+1"]
[EndTime "10:16:07 PST"]
[Termination "Sviridov_Valery won by resignation"]

1. e4 {[%clk 0:03:00.9]} 1... Nf6 {[%clk 0:02:58.5]} 2. Nc3 {[%clk 0:02:59.9]}
2... d5 {[%clk 0:02:58.1]} 3. e5 {[%clk 0:02:59.9]} 3... d4 {[%clk 0:02:58]} 4.
exf6 {[%clk 0:02:59.4]} 4... dxc3 {[%clk 0:02:58.9]} 5. fxg7 {[%clk 0:02:59.9]}
5... cxd2+ {[%clk 0:02:59.2]} 6. Qxd2 {[%clk 0:03:00.1]} 6... Qxd2+ {[%clk
0:02:59.2]} 7. Bxd2 {[%clk 0:03:00.6]} 7... Bxg7 {[%clk 0:03:00.1]} 8. O-O-O
{[%clk 0:03:00.7]} 8... Nc6 {[%clk 0:02:59.2]} 9. Nf3 {[%clk 0:02:58.3]} 9...
Bd7 {[%clk 0:02:58.6]} 10. Bc4 {[%clk 0:02:52.9]} 10... e6 {[%clk 0:02:57.4]}
11. Rhe1 {[%clk 0:02:42.4]} 11... O-O-O {[%clk 0:02:51.5]} 12. Bf4 {[%clk
0:02:40.2]} 12... Na5 {[%clk 0:02:48.8]} 13. Bd3 {[%clk 0:02:33.1]} 13... f6
{[%clk 0:02:48.6]} 14. Bd2 {[%clk 0:02:24.9]} 14... Nc6 {[%clk 0:02:45.8]} 15.
Bc3 {[%clk 0:02:22.3]} 15... e5 {[%clk 0:02:45.8]} 16. Nh4 {[%clk 0:02:20.2]}
16... Bf8 {[%clk 0:02:43]} 17. Bf5 {[%clk 0:02:16.9]} 17... Bc5 {[%clk
0:02:42.4]} 18. Rf1 {[%clk 0:02:07.2]} 18... Ne7 {[%clk 0:02:39.7]} 19. Bxd7+
{[%clk 0:02:04.3]} 19... Rxd7 {[%clk 0:02:40.6]} 20. Rxd7 {[%clk 0:02:03.4]}
20... Kxd7 {[%clk 0:02:41.5]} 21. f4 {[%clk 0:02:02.4]} 21... exf4 {[%clk
0:02:37.6]} 22. Bxf6 {[%clk 0:01:54.8]} 22... Rg8 {[%clk 0:02:32.1]} 23. Bxe7
{[%clk 0:01:41.5]} 23... Bxe7 {[%clk 0:02:33]} 24. Nf5 {[%clk 0:01:29.6]} 24...
Rxg2 {[%clk 0:02:30.5]} 25. h4 {[%clk 0:01:01.9]} 25... Rg4 {[%clk 0:02:19.6]}
26. h5 {[%clk 0:01:00.5]} 26... Bf6 {[%clk 0:02:16.2]} 27. c3 {[%clk 0:00:39.9]}
27... Ke6 {[%clk 0:02:15.9]} 28. Nd4+ {[%clk 0:00:20.4]} 28... Bxd4 {[%clk
0:02:14.9]} 29. cxd4 {[%clk 0:00:20.5]} 29... Kf5 {[%clk 0:02:09.8]} 30. Kd2
{[%clk 0:00:17.4]} 30... Rg2+ {[%clk 0:02:08.6]} 31. Kc3 {[%clk 0:00:17.2]}
31... Kg4 {[%clk 0:02:07.4]} 32. h6 {[%clk 0:00:16.4]} 32... f3 {[%clk
0:02:07.7]} 33. b4 {[%clk 0:00:14.9]} 33... Rxa2 {[%clk 0:02:06.9]} 34. Kd3
{[%clk 0:00:13.6]} 34... f2 {[%clk 0:02:06.3]} 0-1

[Event "*** Titled Tuesday Blitz"]
[Site "Chess.com"]
[Date "2020.12.29"]
[Round "2"]
[White "BahadirOzen"]
[Black "lelajavakhishvili"]
[Result "1-0"]
[WhiteElo "2778"]
[BlackElo "2515"]
[TimeControl "180+1"]
[EndTime "10:16:07 PST"]
[Termination "BahadirOzen won by resignation"]

1. Nf3 {[%clk 0:03:00.9]} 1... c5 {[%clk 0:02:57.6]} 2. c4 {[%clk 0:03:01]} 2...
Nc6 {[%clk 0:02:57.5]} 3. d4 {[%clk 0:03:00]} 3... cxd4 {[%clk 0:02:57.1]} 4.
Nxd4 {[%clk 0:03:00.9]} 4... g6 {[%clk 0:02:55.6]} 5. e4 {[%clk 0:02:58.7]} 5...
Nf6 {[%clk 0:02:55.1]} 6. Nc3 {[%clk 0:02:58.3]} 6... Nxd4 {[%clk 0:02:55.4]} 7.
Qxd4 {[%clk 0:02:57.8]} 7... d6 {[%clk 0:02:56.3]} 8. Be3 {[%clk 0:02:36.2]}
8... Bg7 {[%clk 0:02:55.9]} 9. Be2 {[%clk 0:02:35.5]} 9... O-O {[%clk
0:02:53.9]} 10. Qd2 {[%clk 0:02:35.2]} 10... Be6 {[%clk 0:02:52]} 11. O-O {[%clk
0:02:31.5]} 11... Ng4 {[%clk 0:02:23.7]} 12. Bxg4 {[%clk 0:02:30]} 12... Bxg4
{[%clk 0:02:23.2]} 13. Rac1 {[%clk 0:02:11.5]} 13... Qa5 {[%clk 0:02:10.4]} 14.
b3 {[%clk 0:01:43]} 14... Rfc8 {[%clk 0:02:05.8]} 15. f3 {[%clk 0:01:39.8]}
15... Bd7 {[%clk 0:02:02.8]} 16. Rfd1 {[%clk 0:01:14.4]} 16... a6 {[%clk
0:01:42.9]} 17. Nd5 {[%clk 0:01:10.9]} 17... Qxd2 {[%clk 0:01:24.6]} 18. Rxd2
{[%clk 0:01:11.8]} 18... Kf8 {[%clk 0:01:13.2]} 19. Nb6 {[%clk 0:01:10.8]} 19...
Be6 {[%clk 0:01:12.7]} 20. Nxa8 {[%clk 0:01:10.6]} 20... Rxa8 {[%clk 0:01:12.6]}
21. c5 {[%clk 0:01:08.4]} 21... Rc8 {[%clk 0:01:10]} 22. Rdc2 {[%clk 0:01:01.3]}
22... d5 {[%clk 0:01:10.3]} 23. c6 {[%clk 0:01:01.8]} 23... bxc6 {[%clk
0:01:06.9]} 24. Rxc6 {[%clk 0:01:02.7]} 24... Ra8 {[%clk 0:00:56.9]} 25. exd5
{[%clk 0:01:01.7]} 25... Bxd5 {[%clk 0:00:56.9]} 26. Rc8+ {[%clk 0:01:01.3]} 1-0

[Event "*** Titled Tuesday Blitz"]
[Site "Chess.com"]
[Date "2020.12.29"]
[Round "2"]
[White "FloMaster111"]
[Black "northridgehawk"]
[Result "1-0"]
[WhiteElo "2587"]
[BlackElo "2319"]
[TimeControl "180+1"]
[EndTime "10:16:10 PST"]
[Termination "FloMaster111 won by resignation"]

1. e4 {[%clk 0:03:00.9]} 1... e5 {[%clk 0:02:59.2]} 2. Bc4 {[%clk 0:02:58.8]}
2... Nc6 {[%clk 0:02:59.2]} 3. Nf3 {[%clk 0:02:57.4]} 3... Nf6 {[%clk
0:02:59.7]} 4. O-O {[%clk 0:02:56.5]} 4... Bc5 {[%clk 0:02:59.9]} 5. Nc3 {[%clk
0:02:54.5]} 5... d6 {[%clk 0:02:59.8]} 6. d3 {[%clk 0:02:53.9]} 6... h6 {[%clk
0:02:57.9]} 7. h3 {[%clk 0:02:51.9]} 7... g5 {[%clk 0:02:56.6]} 8. Nh2 {[%clk
0:02:48.3]} 8... g4 {[%clk 0:02:55.9]} 9. Nxg4 {[%clk 0:02:40.7]} 9... Nxg4
{[%clk 0:02:53.6]} 10. hxg4 {[%clk 0:02:41.1]} 10... Rg8 {[%clk 0:02:53.7]} 11.
Qf3 {[%clk 0:02:40.2]} 11... Rg7 {[%clk 0:02:22.7]} 12. g5 {[%clk 0:02:18.4]}
12... hxg5 {[%clk 0:02:19.1]} 13. Nd5 {[%clk 0:02:18.3]} 13... Nd4 {[%clk
0:02:13.5]} 14. Qh5 {[%clk 0:02:15.9]} 14... Kd7 {[%clk 0:01:48.5]} 15. b4
{[%clk 0:02:05.6]} 15... Bb6 {[%clk 0:01:43.5]} 16. c3 {[%clk 0:02:04.1]} 16...
Ne6 {[%clk 0:01:35.1]} 17. Qh6 {[%clk 0:01:46.5]} 17... Rg6 {[%clk 0:01:21.2]}
18. Qh7 {[%clk 0:01:46.7]} 18... Qg8 {[%clk 0:00:57.8]} 19. Nf6+ {[%clk
0:01:40]} 19... Rxf6 {[%clk 0:00:51.2]} 20. Qxg8 {[%clk 0:01:40]} 20... Ke7
{[%clk 0:00:41.9]} 21. Bxe6 {[%clk 0:01:38.1]} 21... Rxe6 {[%clk 0:00:34.5]} 22.
Bxg5+ {[%clk 0:01:37.6]} 22... Kd7 {[%clk 0:00:32.5]} 23. Qd8+ {[%clk
0:01:34.5]} 23... Kc6 {[%clk 0:00:32.5]} 24. a4 {[%clk 0:01:33.4]} 24... a6
{[%clk 0:00:20.4]} 25. b5+ {[%clk 0:01:31.6]} 25... axb5 {[%clk 0:00:20.1]} 26.
axb5+ {[%clk 0:01:32.5]} 26... Kxb5 {[%clk 0:00:19.9]} 27. Rxa8 {[%clk
0:01:33.2]} 1-0

[Event "*** Titled Tuesday Blitz"]
[Site "Chess.com"]
[Date "2020.12.29"]
[Round "2"]
[White "KaterinaMiroshnik"]
[Black "rpragchess"]
[Result "0-1"]
[WhiteElo "2542"]
[BlackElo "2841"]
[TimeControl "180+1"]
[EndTime "10:16:14 PST"]
[Termination "rpragchess won on time"]

1. d4 {[%clk 0:02:59.1]} 1... Nf6 {[%clk 0:02:57.1]} 2. Nf3 {[%clk 0:02:59.3]}
2... b5 {[%clk 0:02:50.4]} 3. c3 {[%clk 0:02:59.6]} 3... Bb7 {[%clk 0:02:50.1]}
4. e3 {[%clk 0:02:59]} 4... a6 {[%clk 0:02:46.2]} 5. Bd3 {[%clk 0:02:58]} 5...
e6 {[%clk 0:02:45.7]} 6. O-O {[%clk 0:02:58.3]} 6... c5 {[%clk 0:02:45.7]} 7. a4
{[%clk 0:02:56.6]} 7... c4 {[%clk 0:02:45.3]} 8. Be2 {[%clk 0:02:56]} 8... d5
{[%clk 0:02:41]} 9. Nbd2 {[%clk 0:02:54.3]} 9... Bd6 {[%clk 0:02:40.5]} 10. b4
{[%clk 0:02:45.2]} 10... O-O {[%clk 0:02:31]} 11. a5 {[%clk 0:02:38.9]} 11...
Nc6 {[%clk 0:02:28.8]} 12. Qc2 {[%clk 0:02:39.1]} 12... Qc7 {[%clk 0:02:22.1]}
13. Bb2 {[%clk 0:02:37.2]} 13... Rfe8 {[%clk 0:02:20]} 14. g3 {[%clk 0:02:32.4]}
14... e5 {[%clk 0:02:04.5]} 15. dxe5 {[%clk 0:02:26.7]} 15... Bxe5 {[%clk
0:02:05.4]} 16. Nd4 {[%clk 0:02:24.7]} 16... Bxd4 {[%clk 0:02:00.4]} 17. cxd4
{[%clk 0:02:24.8]} 17... Nxb4 {[%clk 0:01:57.1]} 18. Qc1 {[%clk 0:02:07.4]}
18... Nc6 {[%clk 0:01:55.5]} 19. Bf3 {[%clk 0:01:39.8]} 19... Bc8 {[%clk
0:01:41]} 20. Re1 {[%clk 0:01:32.7]} 20... Bf5 {[%clk 0:01:40.8]} 0-1

[Event "*** Titled Tuesday Blitz"]
[Site "Chess.com"]
[Date "2020.12.29"]
[Round "2"]
[White "r31415"]
[Black "ChessQueen"]
[Result "0-1"]
[WhiteElo "2506"]
[BlackElo "2756"]
[TimeControl "180+1"]
[EndTime "10:16:19 PST"]
[Termination "ChessQueen won by resignation"]

1. e4 {[%clk 0:03:00.9]} 1... c6 {[%clk 0:02:58.2]} 2. d4 {[%clk 0:03:00.2]}
2... d5 {[%clk 0:02:58.1]} 3. f3 {[%clk 0:02:43.4]} 3... dxe4 {[%clk 0:02:53.1]}
4. fxe4 {[%clk 0:02:44.3]} 4... e5 {[%clk 0:02:53.4]} 5. Nf3 {[%clk 0:02:44.6]}
5... exd4 {[%clk 0:02:49.4]} 6. Bc4 {[%clk 0:02:44.4]} 6... Nf6 {[%clk
0:02:40.1]} 7. O-O {[%clk 0:02:42.9]} 7... Qb6 {[%clk 0:02:33.3]} 8. Ng5 {[%clk
0:02:12.6]} 8... Bg4 {[%clk 0:02:30.9]} 9. Qd2 {[%clk 0:01:57.9]} 9... Bh5
{[%clk 0:02:24.7]} 10. e5 {[%clk 0:01:34.1]} 10... Nd5 {[%clk 0:02:08]} 11. e6
{[%clk 0:01:28.2]} 11... f6 {[%clk 0:02:01.7]} 12. Ne4 {[%clk 0:01:15.1]} 12...
Ne3 {[%clk 0:01:57.1]} 13. Re1 {[%clk 0:01:09.6]} 13... Nxc4 {[%clk 0:01:56.5]}
14. Qf2 {[%clk 0:01:03]} 14... Be7 {[%clk 0:01:56.1]} 15. b3 {[%clk 0:00:50.5]}
15... Ne3 {[%clk 0:01:51.7]} 16. Na3 {[%clk 0:00:48.8]} 16... O-O {[%clk
0:01:49.3]} 17. Nc4 {[%clk 0:00:37]} 17... Nxc4 {[%clk 0:01:48.6]} 18. bxc4
{[%clk 0:00:37.9]} 18... Na6 {[%clk 0:01:46.5]} 19. Kh1 {[%clk 0:00:35.5]} 19...
Bg6 {[%clk 0:01:42.6]} 20. Ng3 {[%clk 0:00:32.1]} 20... d3 {[%clk 0:01:38.9]}
21. Qf3 {[%clk 0:00:23.4]} 21... dxc2 {[%clk 0:01:35.9]} 22. Nf5 {[%clk
0:00:22.7]} 22... Bxf5 {[%clk 0:01:31.8]} 23. Qxf5 {[%clk 0:00:23.6]} 23... Qd4
{[%clk 0:01:29.6]} 24. Be3 {[%clk 0:00:18.4]} 24... Qxc4 {[%clk 0:01:29.7]} 25.
Rac1 {[%clk 0:00:17]} 25... Nb4 {[%clk 0:01:29.8]} 26. Qg4 {[%clk 0:00:11]}
26... Qxg4 {[%clk 0:01:29.3]} 0-1

[Event "*** Titled Tuesday Blitz"]
[Site "Chess.com"]
[Date "2020.12.29"]
[Round "2"]
[White "crescentmoon2411"]
[Black "PabloZarnicki"]
[Result "1-0"]
[WhiteElo "2884"]
[BlackElo "2560"]
[TimeControl "180+1"]
[EndTime "10:16:21 PST"]
[Termination "crescentmoon2411 won by resignation"]

1. e4 {[%clk 0:03:00.9]} 1... e5 {[%clk 0:02:59.6]} 2. Nf3 {[%clk 0:03:00.9]}
2... Nf6 {[%clk 0:03:00.2]} 3. Nxe5 {[%clk 0:02:57.6]} 3... d6 {[%clk
0:03:00.6]} 4. Nf3 {[%clk 0:02:57.9]} 4... Nxe4 {[%clk 0:03:01.1]} 5. Nc3 {[%clk
0:02:54.7]} 5... Nxc3 {[%clk 0:03:01]} 6. dxc3 {[%clk 0:02:55.1]} 6... Be7
{[%clk 0:03:01.6]} 7. Be3 {[%clk 0:02:53.5]} 7... O-O {[%clk 0:03:00.3]} 8. Qd2
{[%clk 0:02:53.1]} 8... Nd7 {[%clk 0:02:59.6]} 9. O-O-O {[%clk 0:02:52.5]} 9...
b6 {[%clk 0:02:58.8]} 10. h4 {[%clk 0:02:43.6]} 10... Bb7 {[%clk 0:02:58.4]} 11.
Ng5 {[%clk 0:02:34.1]} 11... Nf6 {[%clk 0:02:55.1]} 12. Bd3 {[%clk 0:02:25.7]}
12... h6 {[%clk 0:02:48.8]} 13. f3 {[%clk 0:02:20.1]} 13... Nd5 {[%clk
0:02:37.9]} 14. Kb1 {[%clk 0:02:03.8]} 14... Nxe3 {[%clk 0:02:36.7]} 15. Qxe3
{[%clk 0:02:03.7]} 15... g6 {[%clk 0:02:23.7]} 16. Ne6 {[%clk 0:01:53.7]} 16...
fxe6 {[%clk 0:02:17.9]} 17. Qxe6+ {[%clk 0:01:54.6]} 17... Rf7 {[%clk
0:02:10.1]} 18. Bxg6 {[%clk 0:01:49]} 18... Qf8 {[%clk 0:02:09.3]} 19. Rd4
{[%clk 0:01:43.4]} 19... Bc8 {[%clk 0:02:06.6]} 20. Bxf7+ {[%clk 0:01:42.6]}
20... Qxf7 {[%clk 0:02:03]} 21. Rg4+ {[%clk 0:01:42.4]} 21... Bg5 {[%clk
0:01:51.6]} 22. Qxh6 {[%clk 0:01:38.6]} 22... Bxg4 {[%clk 0:01:50.5]} 23. Qxg5+
{[%clk 0:01:31.3]} 23... Qg7 {[%clk 0:01:49.8]} 24. Qxg4 {[%clk 0:01:26.1]}
24... Qxg4 {[%clk 0:01:47.8]} 25. fxg4 {[%clk 0:01:27]} 25... Re8 {[%clk
0:01:46.9]} 26. b3 {[%clk 0:01:19.2]} 26... Re4 {[%clk 0:01:46.3]} 27. g5 {[%clk
0:01:19.4]} 27... Rg4 {[%clk 0:01:46.1]} 28. g3 {[%clk 0:01:05.1]} 28... Rxg3
{[%clk 0:01:45.4]} 29. Kb2 {[%clk 0:01:04.1]} 29... Kg7 {[%clk 0:01:44.6]} 30.
Re1 {[%clk 0:01:03.5]} 30... Kf7 {[%clk 0:01:42.1]} 31. Re4 {[%clk 0:01:03.6]}
31... d5 {[%clk 0:01:39.2]} 32. Rf4+ {[%clk 0:01:03.8]} 32... Kg7 {[%clk
0:01:39.1]} 33. a4 {[%clk 0:01:03.5]} 33... a5 {[%clk 0:01:37.1]} 34. Rf6 {[%clk
0:01:02.9]} 34... Rh3 {[%clk 0:01:35.7]} 35. Rc6 {[%clk 0:01:02.8]} 35... Rxh4
{[%clk 0:01:35.8]} 36. Rxc7+ {[%clk 0:01:03.2]} 36... Kg6 {[%clk 0:01:29.9]} 37.
Rc6+ {[%clk 0:01:03.8]} 37... Kxg5 {[%clk 0:01:29.8]} 38. Rxb6 {[%clk
0:01:04.4]} 38... Kf4 {[%clk 0:01:26.1]} 39. Rb5 {[%clk 0:01:04.2]} 39... Ke4
{[%clk 0:01:26.1]} 40. Rxa5 {[%clk 0:01:04.1]} 40... Rh7 {[%clk 0:01:23.6]} 41.
Rb5 {[%clk 0:01:04.1]} 41... Ra7 {[%clk 0:01:22.8]} 42. a5 {[%clk 0:01:04.1]}
42... Ke5 {[%clk 0:01:23.3]} 43. c4 {[%clk 0:01:03.8]} 43... Kd6 {[%clk
0:01:22.7]} 44. cxd5 {[%clk 0:01:03.6]} 1-0

[Event "*** Titled Tuesday Blitz"]
[Site "Chess.com"]
[Date "2020.12.29"]
[Round "2"]
[White "Eternauta2400"]
[Black "MarcLonoff"]
[Result "1-0"]
[WhiteElo "2415"]
[BlackElo "2169"]
[TimeControl "180+1"]
[EndTime "10:16:27 PST"]
[Termination "Eternauta2400 won on time"]

1. d4 {[%clk 0:03:00.9]} 1... e6 {[%clk 0:02:59.2]} 2. c4 {[%clk 0:03:00.5]}
2... b6 {[%clk 0:02:58.6]} 3. Nf3 {[%clk 0:02:55.5]} 3... Bb7 {[%clk 0:02:19.3]}
4. g3 {[%clk 0:02:54.8]} 4... f5 {[%clk 0:02:16.6]} 5. Bg2 {[%clk 0:02:50.9]}
5... Nf6 {[%clk 0:02:16.2]} 6. O-O {[%clk 0:02:50.6]} 6... Be7 {[%clk
0:02:11.8]} 7. d5 {[%clk 0:02:49.9]} 7... O-O {[%clk 0:02:10.8]} 8. Nd4 {[%clk
0:02:46.7]} 8... exd5 {[%clk 0:02:06.9]} 9. Nxf5 {[%clk 0:02:43.8]} 9... c6
{[%clk 0:02:03.6]} 10. cxd5 {[%clk 0:02:33.1]} 10... Nxd5 {[%clk 0:01:44.3]} 11.
e4 {[%clk 0:02:33.1]} 11... Nf6 {[%clk 0:01:38.6]} 12. Nc3 {[%clk 0:02:32.7]}
12... d5 {[%clk 0:01:38]} 13. exd5 {[%clk 0:02:27.5]} 13... Nxd5 {[%clk
0:01:37.9]} 14. Nxd5 {[%clk 0:02:24.6]} 14... Rxf5 {[%clk 0:01:28.6]} 15. Nxe7+
{[%clk 0:02:24.8]} 15... Qxe7 {[%clk 0:01:27.9]} 16. Bf4 {[%clk 0:02:25.7]}
16... Nd7 {[%clk 0:01:22.3]} 17. Qd2 {[%clk 0:02:16.1]} 17... Nf8 {[%clk
0:01:13.1]} 18. Rad1 {[%clk 0:02:13]} 18... h6 {[%clk 0:01:00.4]} 19. Rfe1
{[%clk 0:02:09.5]} 19... Qf7 {[%clk 0:00:59.3]} 20. Qd6 {[%clk 0:01:58]} 20...
Re8 {[%clk 0:00:43.8]} 21. h4 {[%clk 0:01:49.4]} 21... Rf6 {[%clk 0:00:37.2]}
22. Qc7 {[%clk 0:01:44.5]} 22... Qxc7 {[%clk 0:00:19.5]} 23. Bxc7 {[%clk
0:01:45.4]} 23... Rxe1+ {[%clk 0:00:16.4]} 24. Rxe1 {[%clk 0:01:44.8]} 24... Rf7
{[%clk 0:00:11.9]} 25. Bb8 {[%clk 0:01:42.9]} 25... a6 {[%clk 0:00:04.4]} 26.
Re8 {[%clk 0:01:37]} 1-0

[Event "*** Titled Tuesday Blitz"]
[Site "Chess.com"]
[Date "2020.12.29"]
[Round "2"]
[White "Karacsonyi_Gellert"]
[Black "MrTattaglia"]
[Result "1-0"]
[WhiteElo "2610"]
[BlackElo "2953"]
[TimeControl "180+1"]
[EndTime "10:16:28 PST"]
[Termination "Karacsonyi_Gellert won by resignation"]

1. e4 {[%clk 0:03:00.9]} 1... e5 {[%clk 0:02:58.1]} 2. Nf3 {[%clk 0:03:01.2]}
2... Nc6 {[%clk 0:02:58.6]} 3. Bb5 {[%clk 0:03:01.7]} 3... Nf6 {[%clk
0:02:57.9]} 4. O-O {[%clk 0:03:01.6]} 4... Nxe4 {[%clk 0:02:57.7]} 5. d4 {[%clk
0:03:02.1]} 5... Nd6 {[%clk 0:02:53.3]} 6. dxe5 {[%clk 0:03:02.5]} 6... Nxb5
{[%clk 0:02:53.1]} 7. a4 {[%clk 0:03:03]} 7... Nbd4 {[%clk 0:02:48.5]} 8. Nxd4
{[%clk 0:03:03.4]} 8... d5 {[%clk 0:02:48.9]} 9. exd6 {[%clk 0:03:03]} 9... Nxd4
{[%clk 0:02:47.8]} 10. Qxd4 {[%clk 0:03:03.9]} 10... Qxd6 {[%clk 0:02:47.6]} 11.
Qe4+ {[%clk 0:03:04.4]} 11... Qe6 {[%clk 0:02:47.5]} 12. Qd4 {[%clk 0:03:04.8]}
12... Bd7 {[%clk 0:02:40]} 13. Nc3 {[%clk 0:02:56.7]} 13... c5 {[%clk
0:02:37.8]} 14. Qd2 {[%clk 0:02:49.5]} 14... O-O-O {[%clk 0:02:36.7]} 15. Re1
{[%clk 0:02:44.3]} 15... Qg6 {[%clk 0:02:36]} 16. Qg5 {[%clk 0:01:56.5]} 16...
Bd6 {[%clk 0:02:19.8]} 17. Nb5 {[%clk 0:01:49.5]} 17... Bxb5 {[%clk 0:02:01.5]}
18. axb5 {[%clk 0:01:50.4]} 18... Rhe8 {[%clk 0:02:01.6]} 19. Be3 {[%clk
0:01:10.3]} 19... Qxg5 {[%clk 0:01:12.7]} 20. Bxg5 {[%clk 0:01:11.2]} 20...
Rxe1+ {[%clk 0:01:13]} 21. Rxe1 {[%clk 0:01:12.1]} 21... f6 {[%clk 0:01:13.4]}
22. Be3 {[%clk 0:01:12.4]} 22... Kc7 {[%clk 0:01:10.2]} 23. Kf1 {[%clk
0:01:10.3]} 23... Kb6 {[%clk 0:01:03.6]} 24. c4 {[%clk 0:01:10]} 24... Ka5
{[%clk 0:00:39.1]} 25. Bd2+ {[%clk 0:01:02.1]} 25... Ka4 {[%clk 0:00:38.7]} 26.
Re3 {[%clk 0:00:59.4]} 1-0